bitfinex/quotes_ETHUSD_20250814
["timestamp","ask_amount","ask_price","bid_price","bid_amount"]
[1755150401619,0.002,4725.9,4725.8,6.3376]
[1755150403133,0.4635,4726.2,4725.8,3.3376]
[1755150403504,0.4635,4726.2,4725.8,0.1056]
[1755150403861,0.4635,4726.2,4725.9,3.232]
[1755150404228,0.4635,4726.2,4726.0,3.232]
[1755150405228,0.022,4726.4,4726.0,4.713168]
[1755150405556,0.022,4726.4,4726.0,3.232]
[1755150405773,0.022,4726.4,4726.2,1.48109868]
[1755150405942,0.022,4726.4,4726.3,3.232]
[1755150406262,0.022,4726.4,4726.3,3.3376]
[1755150407655,0.022,4726.4,4726.3,6.3376]
[1755150408358,0.022,4726.4,4726.3,8.45341998]
[1755150409859,0.022,4726.4,4726.3,6.3376]
[1755150410030,0.022,4726.4,4726.3,8.66471998]
[1755150410231,0.4855,4726.4,4726.3,3.1056]
[1755150410465,0.947,4726.4,4726.3,6.3376]
[1755150410959,0.947,4726.4,4726.3,3.1056]
[1755150411160,0.947,4726.4,4726.3,6.3376]
[1755150411532,0.022,4726.4,4726.3,6.3376]
[1755150413935,0.4902,4726.4,4726.3,6.3376]
[1755150415374,0.4782,4726.7,4726.4,3.0]
[1755150415534,0.002,4726.9,4726.5,8.88174388]
[1755150415736,0.4802,4726.6,4726.5,8.88174388]
[1755150417436,0.9484,4726.6,4726.5,6.231]
[1755150418140,0.9484,4726.6,4726.5,8.88249563]
[1755150418341,0.002,4726.6,4726.5,14.15910354]
[1755150418642,0.002,4726.6,4726.5,11.50760791]
[1755150419175,0.002,4726.6,4726.5,11.298]
[1755150419939,0.002,4726.6,4726.5,11.5093]
[1755150420183,0.002,4726.6,4726.5,11.298]
[1755150421484,0.9484,4726.6,4726.5,11.298]
[1755150422186,0.002,4726.6,4726.5,11.298]
[1755150422739,0.002,4726.6,4726.5,13.41373045]
[1755150422972,0.002,4726.6,4726.5,11.298]
[1755150423481,0.002,4726.6,4726.5,13.41373045]
[1755150424469,0.002,4726.6,4726.5,11.298]
[1755150425248,0.4702,4726.9,4726.6,3.0]
[1755150425443,0.002,4726.9,4726.8,3.0]
[1755150425756,0.002,4726.9,4726.8,3.1056]
[1755150426169,0.9484,4726.9,4726.8,3.1056]
[1755150430765,0.002,4726.9,4726.8,3.1056]
[1755150433500,0.9484,4726.9,4726.8,3.1056]
[1755150435404,0.4782,4726.9,4726.8,3.1056]
[1755150436513,0.4782,4726.9,4726.8,6.3356]
[1755150437366,0.9464,4726.9,4726.8,6.3356]
[1755150438179,0.9484,4726.9,4726.8,6.3356]
[1755150438580,0.9484,4726.9,4726.8,3.1056]
[1755150438910,0.9484,4726.9,4726.8,10.95586657]
[1755150439106,0.9484,4726.9,4726.8,8.297]
[1755150439291,0.9484,4726.9,4726.8,11.297]
[1755150440104,0.9484,4726.9,4726.8,8.067]
[1755150440310,0.9484,4726.9,4726.8,5.067]
[1755150440675,0.9484,4726.9,4726.8,8.297]
[1755150441290,0.9484,4726.9,4726.8,5.067]
[1755150441700,0.9484,4726.9,4726.8,8.297]
[1755150441895,0.9484,4726.9,4726.8,5.067]
[1755150442108,0.9484,4726.9,4726.8,8.297]
[1755150443118,1.1068202,4726.9,4726.8,5.067]
[1755150443491,1.1068202,4726.9,4726.8,8.297]
[1755150446127,1.1068202,4726.9,4726.8,5.067]
[1755150446326,0.002,4726.9,4726.8,5.067]
[1755150446705,0.9125,4726.9,4726.8,5.067]
[1755150446920,0.9125,4726.9,4726.8,8.298]
[1755150448628,0.4638,4726.9,4726.8,8.298]
[1755150449330,0.002,4726.9,4726.8,8.4036]
[1755150449517,0.002,4726.9,4726.8,5.1726]
[1755150449720,0.002,4726.9,4726.8,8.8669]
[1755150449922,0.9125,4726.9,4726.8,5.067]
[1755150450119,0.9125,4726.9,4726.8,11.298]
[1755150450333,0.9125,4726.9,4726.8,5.067]
[1755150450538,0.9125,4726.9,4726.8,8.301]
[1755150451107,1.0181,4726.9,4726.8,8.301]
[1755150453705,0.1076,4726.9,4726.8,8.301]
[1755150453924,0.002,4726.9,4726.8,5.1726]
[1755150454336,0.9125,4726.9,4726.8,8.301]
[1755150454638,0.002,4726.9,4726.8,8.301]
[1755150455305,0.4638,4726.9,4726.8,8.301]
[1755150455523,0.9125,4726.9,4726.8,8.301]
[1755150456342,0.4507,4726.9,4726.8,8.301]
[1755150456640,0.002,4726.9,4726.8,8.301]
[1755150457206,0.002,4726.9,4726.8,8.4066]
[1755150457413,0.002,4726.9,4726.8,8.8709]
[1755150457727,0.002,4726.9,4726.8,11.8709]
[1755150457930,0.002,4726.9,4726.8,11.8719]
[1755150458241,0.88309,4728.1,4726.9,3.0]
[1755150458445,0.1056,4728.5,4727.1,3.0]
[1755150458611,0.5543,4728.5,4727.8,0.1056]
[1755150458812,0.4487,4728.3,4727.9,3.24]
[1755150460116,0.9105,4728.3,4727.9,3.24]
[1755150460918,0.4618,4728.2,4727.9,3.24]
[1755150461513,0.9105,4728.2,4727.9,3.24]
[1755150462742,0.1056,4728.5,4727.9,3.24]
[1755150463621,0.4707,4728.4,4727.9,3.24]
[1755150463828,0.4618,4728.3,4727.9,3.24]
[1755150464052,0.9105,4728.3,4727.9,3.24]
[1755150464759,0.4618,4728.3,4727.9,3.24]
[1755150465328,0.022,4728.4,4727.9,3.24]
[1755150467965,0.022,4728.4,4727.8,0.1056]
[1755150468166,0.022,4728.4,4727.9,3.235]
[1755150468534,0.022,4728.4,4727.9,3.6993]
[1755150469676,0.022,4728.4,4727.9,0.4643]
[1755150469980,0.022,4728.4,4728.0,3.233]
[1755150470175,0.4487,4728.3,4728.1,3.233]
[1755150470473,0.9105,4728.2,4728.1,3.233]
[1755150471648,0.9105,4728.2,4727.8,0.1056]
[1755150471867,0.9566,4728.1,4727.9,8.3]
[1755150473051,0.4819,4728.1,4727.9,8.3]
[1755150473485,0.4967,4728.4,4727.9,8.3]
[1755150473665,0.4819,4728.3,4727.9,8.3]
[1755150474041,0.022,4728.4,4728.0,2.11501749]
[1755150474739,0.022,4728.4,4727.9,8.3]
[1755150474960,0.022,4728.4,4728.3,2.11492502]
[1755150475162,0.022,4728.4,4728.3,5.34492502]
[1755150475381,0.022,4728.4,4728.3,5.79282502]
[1755150475558,0.022,4728.4,4728.3,6.35442502]
[1755150475958,0.002,4728.6,4728.5,2.11483557]
[1755150476385,0.002,4728.6,4728.5,2.56273557]
[1755150476690,0.002,4728.8,4728.7,2.11474612]
[1755150476888,0.002,4729.2,4728.7,5.89924612]
[1755150477184,1e-08,4729.2,4729.1,2.11456725]
[1755150477383,1e-08,4729.2,4729.1,5.34556725]
[1755150478358,1e-08,4729.6,4729.5,2.11438841]
[1755150478596,1e-08,4729.6,4729.5,5.34538841]
[1755150478906,13.27691906,4730.0,4729.9,2.1142096]
[1755150479065,5.93648934,4730.0,4729.9,5.3442096]
[1755150479389,5.34584343,4730.0,4729.9,5.3442096]
[1755150480563,6.03194343,4730.0,4729.9,2.1142096]
[1755150480766,6.03194343,4730.0,4729.9,5.3442096]
[1755150482705,3.28550089,4730.0,4729.9,5.3442096]
[1755150483082,3.48970089,4730.0,4729.9,5.3442096]
[1755150483597,3.48970089,4730.0,4729.9,10.4102096]
[1755150483797,3.84267098,4730.0,4729.9,10.4102096]
[1755150484888,3.84267098,4730.0,4729.9,7.1802096]
[1755150485311,3.84267098,4730.0,4729.9,10.4102096]
[1755150486018,3.84267098,4730.0,4729.9,7.1802096]
[1755150486306,3.84267098,4730.0,4729.9,10.4102096]
[1755150486504,3.84267098,4730.0,4729.9,7.1802096]
[1755150486811,16.73516897,4730.0,4729.9,3.23]
[1755150486967,31.23516897,4730.0,4729.9,3.23]
[1755150487169,31.23516897,4730.0,4729.9,2.1142096]
[1755150487465,18.34267098,4730.0,4729.9,2.1142096]
[1755150487973,3.84267098,4730.0,4729.9,2.1142096]
[1755150488373,3.84267098,4730.0,4729.9,5.3442096]
[1755150489302,3.15657098,4730.0,4729.9,5.3442096]
[1755150489506,3.84267098,4730.0,4729.9,5.3442096]
[1755150491001,3.63847098,4730.0,4729.9,2.1142096]
[1755150491207,3.84267098,4730.0,4729.9,5.3442096]
[1755150494705,3.84267098,4730.0,4729.7,2.11426768]
[1755150494907,1.0703671,4729.9,4729.8,3.23]
[1755150495275,1.1759671,4729.9,4729.8,3.23]
[1755150495478,1.1759671,4729.9,4729.8,5.3442543]
[1755150496278,4.1759671,4729.9,4729.0,5.066]
[1755150496504,0.1056,4729.6,4729.1,3.23]
[1755150496810,1.40124671,4729.5,4729.1,3.23]
[1755150497012,0.1056,4729.2,4729.1,5.34456725]
[1755150497310,0.5875,4729.2,4729.1,5.34456725]
[1755150497678,1.221133,4729.2,4729.1,5.34456725]
[1755150497878,0.739233,4729.2,4729.1,5.34456725]
[1755150498181,1.38771097,4729.2,4729.1,2.11456725]
[1755150498382,1.38771097,4729.2,4729.1,5.34456725]
[1755150498984,0.90581097,4729.2,4729.1,5.34456725]
[1755150502002,0.739233,4729.2,4729.1,5.78426725]
[1755150503188,0.739233,4729.2,4729.1,5.34456725]
[1755150504479,0.739233,4729.2,4729.1,2.11456725]
[1755150504706,0.739233,4729.2,4729.1,5.34456725]
[1755150505094,0.739233,4729.2,4729.1,2.11456725]
[1755150505304,0.8630063,4729.2,4729.1,5.34456725]
[1755150506103,0.8630063,4729.2,4729.1,5.34556725]
[1755150506613,0.739233,4729.2,4729.1,5.78526725]
[1755150506803,0.739233,4729.2,4729.1,5.34556725]
[1755150507410,0.739233,4729.2,4729.1,5.78526725]
[1755150507732,0.1056,4729.2,4729.1,6.28266725]
[1755150507942,0.002,4729.8,4729.7,2.114299]
[1755150508124,0.002,4729.8,4729.7,6.281399]
[1755150508298,0.1076,4729.8,4729.7,6.281399]
[1755150509800,0.1076,4729.8,4729.7,5.783999]
[1755150510407,0.1076,4729.8,4729.7,5.344299]
[1755150511008,0.1076,4729.8,4729.7,5.783999]
[1755150511566,1e-08,4730.0,4729.9,2.1142096]
[1755150511753,1e-08,4730.0,4729.9,6.2813096]
[1755150512419,0.10560001,4730.0,4729.9,6.2813096]
[1755150513167,0.10560001,4730.0,4729.0,0.1056]
[1755150513361,13.85161319,4730.0,4728.6,0.001]
[1755150513643,0.1056,4729.2,4729.1,2.11556725]
[1755150513809,0.6041,4729.2,4729.1,2.11556725]
[1755150514008,1.071,4729.2,4729.1,2.11556725]
[1755150514218,0.6041,4729.2,4729.1,2.11556725]
[1755150514407,0.6041,4729.2,4729.1,5.37656725]
[1755150516937,0.6041,4729.2,4729.1,0.001]
[1755150516938,1.071,4729.2,4729.1,0.001]
[1755150517137,1.071,4729.2,4729.1,3.26]
[1755150517344,15.571,4729.2,4728.6,0.001]
[1755150517543,0.9654,4729.1,4729.0,2.11459585]
[1755150518040,14.5,4729.2,4729.0,2.11459585]
[1755150518230,0.6041,4729.1,4729.0,2.11459585]
[1755150518407,0.6041,4729.1,4729.0,5.37359585]
[1755150518610,0.1056,4729.1,4729.0,5.37359585]
[1755150518812,0.1056,4729.1,4729.0,5.81329585]
[1755150519012,0.1056,4729.1,4729.0,5.37359585]
[1755150519809,0.1056,4729.1,4729.0,6.31069585]
[1755150520438,0.1056,4729.9,4729.7,2.114299]
[1755150520744,0.1056,4729.9,4729.8,3.257]
[1755150520946,0.2112,4729.9,4729.8,3.257]
[1755150521456,0.1056,4729.9,4729.8,4.1941]
[1755150521628,0.1056,4729.9,4729.8,3.6977]
[1755150522149,0.1056,4729.9,4729.8,4.1951]
[1755150523217,1e-08,4730.0,4729.9,2.1142096]
[1755150523414,1e-08,4730.0,4729.9,15.93752278]
[1755150524246,1e-08,4730.0,4729.9,3.0513096]
[1755150524564,1e-08,4730.0,4729.9,6.3083096]
[1755150525052,1e-08,4730.0,4729.9,6.3113096]
[1755150525429,1e-08,4730.0,4729.9,5.8139096]
[1755150525755,1e-08,4730.0,4729.9,6.3113096]
[1755150526059,1e-08,4730.0,4729.9,6.3103096]
[1755150527164,1e-08,4730.0,4729.9,3.0513096]
[1755150527323,1e-08,4730.0,4729.9,5.8129096]
[1755150527524,1e-08,4730.0,4729.9,5.8109096]
[1755150528934,0.00200001,4730.0,4729.9,5.8109096]
[1755150529431,0.00200001,4730.0,4729.9,6.3083096]
[1755150532170,0.00200001,4730.0,4729.9,5.3692096]
[1755150533166,0.00200001,4730.0,4729.9,5.8126096]
[1755150534662,1e-08,4730.1,4730.0,5.1141649]
[1755150534854,1e-08,4730.1,4730.0,6.0446649]
[1755150536578,0.002,4730.3,4730.2,2.11407551]
[1755150536735,1e-08,4730.4,4730.3,2.11403082]
[1755150536936,1e-08,4730.4,4730.3,3.04453082]
[1755150538352,14.52,4731.4,4731.1,2.11367335]
[1755150538664,0.02,4731.4,4731.1,5.36367335]
[1755150539036,0.02,4731.4,4731.3,2.113584]
[1755150539236,0.4953,4731.4,4731.3,5.362584]
[1755150540136,0.9542,4731.4,4731.3,5.362584]
[1755150541133,0.9542,4731.4,4731.3,2.113584]
[1755150541337,0.02,4731.4,4731.3,2.113584]
[1755150541538,13.94601318,4731.4,4728.6,7.72486657]
[1755150541737,12.88621318,4730.3,4729.9,3.375]
[1755150541975,15.4342,4730.2,4730.0,3.375]
[1755150542274,0.9342,4730.1,4729.5,2.11438172]
[1755150542492,0.9342,4730.0,4729.9,3.376]
[1755150542637,0.9342,4730.0,4728.6,5.066]
[1755150542837,0.9342,4729.9,4728.7,2.11472065]
[1755150543038,0.9342,4729.9,4728.6,0.001]
[1755150543271,0.9342,4729.9,4728.9,2.11563483]
[1755150543449,0.9342,4729.9,4728.9,0.001]
[1755150543654,18.4342,4729.9,4729.1,2.11455097]
[1755150543879,18.4342,4729.9,4729.8,3.376]
[1755150544236,3.0,4729.8,4728.9,0.001]
[1755150544441,3.15947875,4729.8,4728.9,0.001]
[1755150544765,0.9342,4729.7,4728.9,0.001]
[1755150544966,0.4589,4729.7,4728.9,0.001]
[1755150545260,0.9342,4729.6,4728.9,2.11561884]
[1755150545455,0.633686,4729.7,4729.5,3.373]
[1755150545655,0.9342,4729.6,4729.5,3.373]
[1755150546159,0.9342,4729.6,4729.1,2.11455234]
[1755150546362,0.633686,4729.7,4729.5,2.11438841]
[1755150546666,0.633686,4729.7,4729.1,2.11455234]
[1755150546853,0.4589,4729.6,4729.1,2.11455234]
[1755150547046,0.4753,4729.6,4729.1,2.11455234]
[1755150547241,0.9342,4729.5,4729.4,2.11541442]
[1755150547442,0.9342,4729.5,4729.1,2.11455234]
[1755150547443,0.9342,4729.5,4728.9,2.11563104]
[1755150547669,0.9342,4729.4,4729.2,2.11451824]
[1755150547945,0.9342,4729.3,4729.0,3.368]
[1755150548260,0.9342,4729.2,4729.1,2.11456725]
[1755150548455,0.9342,4729.2,4729.0,3.368]
[1755150548659,0.633686,4729.7,4729.1,2.11456725]
[1755150548970,0.15947875,4729.8,4729.4,2.11440974]
[1755150549276,0.9342,4729.7,4729.2,3.367]
[1755150549473,14.5,4729.9,4729.5,2.11434888]
[1755150549683,0.9342,4729.6,4729.5,2.11434888]
[1755150549972,0.9342,4729.6,4729.2,5.48150364]
[1755150550175,0.633745,4729.7,4729.5,2.11434888]
[1755150550474,0.633745,4729.7,4729.5,2.11438056]
[1755150550847,0.4753,4729.6,4729.5,2.11438056]
[1755150551771,0.5809,4729.6,4729.5,2.11438056]
[1755150552073,1.43439,4729.6,4729.5,2.11438056]
[1755150552476,1.21459,4729.6,4729.5,2.11438056]
[1755150552776,1.43439,4729.6,4729.5,5.47738056]
[1755150552972,15.71459,4729.6,4729.5,1.79344029]
[1755150553164,15.93439,4729.6,4729.5,5.15344029]
[1755150553945,15.93439,4729.6,4729.3,0.001]
[1755150554190,0.6951,4729.5,4729.4,3.358]
[1755150554750,0.6951,4729.5,4729.3,0.001]
[1755150555003,14.6056,4729.6,4729.4,3.357]
[1755150555289,0.633721,4729.5,4729.4,3.357]
[1755150555646,1.567921,4729.5,4729.4,3.357]
[1755150556156,1.567921,4729.5,4729.3,0.001]
[1755150556362,0.9342,4729.4,4729.3,0.001]
[1755150556686,0.9342,4729.4,4729.3,3.356]
[1755150556856,0.9342,4729.4,4729.3,0.001]
[1755150557056,0.9342,4729.4,4729.3,5.47047782]
[1755150558479,0.9342,4729.4,4729.3,5.46947782]
[1755150558655,1.567944,4729.4,4729.3,5.46947782]
[1755150559582,16.067944,4729.4,4729.3,5.46947782]
[1755150560552,15.609044,4729.4,4729.3,5.46947782]
[1755150561187,15.609044,4729.4,4729.3,5.46247782]
[1755150561385,15.133744,4729.4,4729.3,5.46247782]
[1755150561814,15.133744,4729.4,4729.3,5.92227782]
[1755150562121,0.633744,4729.4,4729.3,6.41207782]
[1755150562302,0.1056,4729.6,4729.5,2.11438841]
[1755150562618,0.1056,4729.6,4729.5,3.06398841]
[1755150563115,0.266225,4729.6,4729.5,3.06398841]
[1755150563615,0.266225,4729.6,4729.5,6.40898841]
[1755150564004,0.1056,4729.6,4729.5,6.40898841]
[1755150567604,0.266225,4729.8,4729.7,2.114299]
[1755150567822,0.002,4730.0,4729.9,2.1142096]
[1755150567969,0.002,4730.0,4729.9,6.4038096]
[1755150568175,0.1076,4730.0,4729.9,6.4038096]
[1755150568577,14.502,4730.5,4730.4,2.11398613]
[1755150568772,14.502,4730.5,4730.4,6.40258613]
[1755150569077,0.1076,4730.5,4730.4,6.40258613]
[1755150569821,0.633384,4731.0,4730.9,2.1137627]
[1755150569989,0.633384,4731.0,4730.9,5.4517627]
[1755150570177,0.738984,4731.0,4730.9,6.4013627]
[1755150571211,0.738984,4731.0,4730.9,2.5735627]
[1755150571400,0.738984,4731.0,4730.9,6.4003627]
[1755150571984,0.738984,4731.0,4730.9,5.9105627]
[1755150572414,0.738984,4731.0,4730.9,5.4507627]
[1755150572621,0.738984,4731.0,4730.9,2.1137627]
[1755150572785,0.738984,4731.0,4730.9,5.4467627]
[1755150572986,0.738984,4731.0,4730.9,2.1137627]
[1755150573188,1.220084,4731.0,4730.9,5.4467627]
[1755150573387,0.738984,4731.0,4730.9,3.333]
[1755150573584,1.650484,4731.0,4730.9,3.332]
[1755150574301,1.650484,4731.0,4730.6,2.11387373]
[1755150574509,0.4811,4730.9,4730.7,3.332]
[1755150574706,0.1056,4730.8,4729.8,0.4598]
[1755150574915,0.9115,4730.9,4730.5,2.11389771]
[1755150575124,0.633384,4731.0,4730.6,5.44386684]
[1755150575421,0.7291,4730.8,4730.6,5.44386684]
[1755150575621,0.1056,4730.7,4730.6,5.44386684]
[1755150575821,0.1056,4730.7,4730.6,2.11386684]
[1755150576116,0.8347,4730.7,4730.6,3.329]
[1755150576685,0.5867,4730.7,4730.6,3.329]
[1755150576889,0.8347,4730.7,4730.6,3.329]
[1755150577190,0.8347,4730.7,4729.7,5.066]
[1755150577402,0.1056,4730.4,4729.7,5.066]
[1755150577699,13.51959718,4731.0,4728.9,7.87e-05]
[1755150577700,0.1056,4729.8,4728.9,7.87e-05]
[1755150578025,3.0,4729.4,4728.9,7.87e-05]
[1755150578340,3.7291,4729.4,4729.3,3.327]
[1755150578514,3.7291,4729.4,4729.3,3.326]
[1755150578693,0.813613,4729.4,4728.9,7.87e-05]
[1755150578890,0.7291,4729.3,4728.9,7.87e-05]
[1755150579219,0.7291,4729.2,4728.9,7.87e-05]
[1755150579395,0.7291,4729.1,4728.9,7.87e-05]
[1755150579599,0.7291,4729.0,4728.9,7.87e-05]
[1755150579996,0.813626,4729.0,4728.9,7.87e-05]
[1755150580188,0.813626,4729.0,4728.1,0.021]
[1755150580541,0.9115,4728.9,4728.1,0.021]
[1755150580688,0.4811,4728.8,4728.1,0.021]
[1755150580893,0.9115,4728.7,4728.1,0.021]
[1755150581392,0.996019,4728.7,4728.6,3.325]
[1755150581587,0.084519,4728.7,4728.6,3.325]
[1755150582023,0.565619,4728.7,4728.6,3.325]
[1755150582191,0.996019,4728.7,4728.6,3.325]
[1755150582693,0.996019,4728.7,4728.4,0.001]
[1755150582893,0.9115,4728.6,4728.4,0.001]
[1755150586022,0.9115,4728.6,4727.1,0.02]
[1755150586228,0.084519,4728.7,4727.1,0.02]
[1755150586229,0.9115,4728.5,4727.1,0.02]
[1755150586390,0.084519,4728.7,4727.1,0.02]
[1755150586598,0.9115,4728.4,4727.1,2.13545094]
[1755150586910,0.9115,4728.3,4727.1,2.13545094]
[1755150587127,0.4811,4728.2,4727.1,0.02]
[1755150587347,0.9115,4728.2,4726.9,2.11650765]
[1755150587632,0.9115,4728.2,4726.9,0.001]
[1755150587808,0.1056,4727.0,4726.9,0.001]
[1755150587993,0.1056,4727.0,4726.9,2.11655141]
[1755150588501,0.1056,4727.0,4726.9,0.001]
[1755150588847,0.5867,4727.0,4726.9,0.001]
[1755150589140,1.23001825,4727.0,4726.4,0.001]
[1755150589309,1.55481825,4727.0,4726.4,0.001]
[1755150589507,0.1056,4726.5,4726.4,0.001]
[1755150590027,0.5867,4726.5,4725.9,0.001]
[1755150590213,0.1056,4726.0,4725.9,0.001]
[1755150591113,0.1056,4726.0,4725.9,2.11699906]
[1755150591312,0.1056,4726.0,4725.9,2.55679906]
[1755150591893,0.1056,4726.0,4725.9,0.4408]
[1755150592100,0.1056,4726.0,4725.9,0.001]
[1755150592708,0.1056,4726.0,4725.9,0.8992]
[1755150593628,0.1056,4726.0,4725.9,3.01519906]
[1755150595212,0.1056,4726.0,4725.9,2.11699906]
[1755150595527,0.1056,4726.0,4725.9,5.42699906]
[1755150595735,0.1056,4726.0,4725.9,5.86679906]
[1755150596232,0.1056,4726.0,4725.9,5.42699906]
[1755150596732,0.1056,4726.0,4725.9,2.11699906]
[1755150597235,0.1056,4726.0,4725.8,0.001]
[1755150597447,0.1056,4726.0,4725.5,3.313]
[1755150597742,0.4533,4726.0,4725.7,2.11608734]
[1755150597913,0.1056,4725.8,4725.7,2.11608734]
[1755150599007,0.1056,4725.8,4725.7,1.68625709]
[1755150599216,0.1056,4725.8,4725.5,3.313]
[1755150599420,0.1056,4725.8,4725.7,0.4398]
[1755150599616,0.1056,4725.8,4725.7,2.55588734]
[1755150599918,0.1056,4725.8,4725.7,3.01428734]
[1755150600328,0.1056,4725.8,4725.7,2.11608862]
[1755150600627,0.1056,4725.8,4725.7,3.01428862]
[1755150601531,0.16221825,4727.0,4726.9,2.11555141]
[1755150601727,0.16396141,4727.1,4727.0,2.11550666]
[1755150602153,0.26956141,4727.1,4727.0,2.11550666]
[1755150602821,0.72286141,4727.1,4727.0,2.11550666]
[1755150603219,0.72286141,4727.1,4726.9,3.316]
[1755150603668,0.72286141,4727.1,4727.0,2.55530666]
[1755150604151,0.72286141,4727.1,4727.0,0.4398]
[1755150604561,0.1076,4727.1,4727.0,2.55530666]
[1755150604768,0.1076,4727.1,4727.0,3.01370666]
[1755150605628,0.1076,4727.1,4727.0,2.55530666]
[1755150606233,0.1076,4727.1,4727.0,0.4398]
[1755150606436,0.1076,4727.1,4727.0,2.55530666]
[1755150607370,0.1076,4727.1,4727.0,3.01370666]
[1755150607559,0.002,4727.6,4727.5,2.11528291]
[1755150607763,0.1076,4727.6,4727.5,6.32448291]
[1755150610667,0.1076,4727.6,4727.5,5.42628291]
[1755150611244,0.1076,4727.6,4727.5,5.86608291]
[1755150611579,0.1076,4727.6,4727.5,5.42628291]
[1755150612442,0.5809,4727.6,4726.8,0.4398]
[1755150612639,0.1056,4726.9,4725.8,0.4398]
[1755150612844,0.1056,4726.4,4726.3,7.18581998]
[1755150613044,0.1056,4726.4,4726.3,7.62561998]
[1755150613286,0.1056,4726.4,4726.1,2.11587956]
[1755150613491,0.1056,4726.4,4726.2,3.31]
[1755150613946,0.1056,4726.4,4726.3,2.11581998]
[1755150614346,0.1056,4726.4,4726.3,2.55561998]
[1755150614646,0.1056,4726.4,4726.3,3.01401998]
[1755150614845,0.1056,4726.4,4726.3,2.55561998]
[1755150615075,0.1056,4726.4,4726.3,3.01401998]
[1755150615476,0.4753,4727.6,4726.8,2.11556445]
[1755150615647,0.4753,4727.6,4726.9,3.313]
[1755150615849,0.4753,4727.6,4727.0,3.313]
[1755150616071,0.4753,4727.6,4727.2,2.11539297]
[1755150616264,0.4753,4727.6,4727.3,5.42836545]
[1755150616466,0.4753,4727.6,4727.3,3.313]
[1755150616651,0.1056,4727.4,4727.3,3.313]
[1755150617390,0.1056,4727.4,4726.6,0.4398]
[1755150617596,0.4753,4727.6,4727.1,2.11542086]
[1755150618148,0.1056,4727.2,4726.7,2.11561809]
[1755150618302,0.002,4727.1,4726.1,0.4398]
[1755150618502,0.4553,4727.1,4726.5,2.11570523]
[1755150618789,0.4553,4727.1,4726.6,3.316]
[1755150618987,0.1056,4726.7,4726.6,3.316]
[1755150619194,0.1056,4726.7,4726.6,5.43168569]
[1755150619375,0.1056,4726.7,4726.6,6.32988569]
[1755150620095,14.6056,4726.7,4726.6,3.316]
[1755150620789,14.6056,4726.7,4726.6,5.43168569]
[1755150621296,14.6056,4726.7,4726.6,5.87148569]
[1755150622192,14.6056,4726.7,4726.6,3.316]
[1755150622489,14.6056,4726.7,4726.6,5.43168569]
[1755150623672,14.6056,4726.7,4726.0,2.56802344]
[1755150624000,14.6056,4726.7,4725.8,0.4844]
[1755150624001,14.6056,4726.7,4725.9,0.4521]
[1755150624295,14.6056,4726.7,4726.6,2.11568569]
[1755150624296,14.5,4726.7,4726.6,2.11568569]
[1755150624663,14.6056,4726.7,4726.6,2.11568569]
[1755150624868,14.6056,4726.7,4726.6,3.321]
[1755150625712,3.0,4726.6,4725.8,0.001]
[1755150625918,3.0,4726.6,4725.8,2.11700082]
[1755150626081,0.1056,4725.9,4725.8,2.11700082]
[1755150626283,0.1056,4725.9,4725.8,0.001]
[1755150626478,0.5888,4725.9,4725.8,0.001]
[1755150626927,15.0888,4725.9,4725.8,0.001]
[1755150627083,15.5522,4725.9,4725.8,0.001]
[1755150627286,15.5522,4725.9,4725.3,2.1162594]
[1755150627582,0.4832,4725.8,4725.3,2.11622315]
[1755150627815,0.1056,4725.4,4725.1,0.021]
[1755150628192,0.4832,4725.3,4724.9,0.001]
[1755150628399,0.1056,4725.0,4724.3,0.001]
[1755150628715,0.1056,4725.0,4724.9,2.1164469]
[1755150629016,14.5,4725.9,4724.9,4.4405]
[1755150629196,14.5,4725.9,4725.0,0.4521]
[1755150629395,14.5,4725.9,4725.7,2.11607465]
[1755150629606,14.5,4725.9,4725.8,3.511]
[1755150629805,15.5522,4725.9,4724.7,2.11649198]
[1755150629991,0.4832,4725.8,4724.8,3.522]
[1755150630192,14.5,4725.9,4724.8,3.522]
[1755150630411,14.5,4725.9,4725.7,2.11607164]
[1755150630585,14.5,4725.9,4725.8,3.52]
[1755150630811,14.5,4725.9,4725.1,2.11631429]
[1755150631048,0.569,4725.8,4724.5,0.4521]
[1755150631218,0.4634,4725.8,4725.5,2.11616393]
[1755150631411,0.4832,4725.7,4725.4,2.11620354]
[1755150631938,0.1056,4725.5,4725.4,2.11620354]
[1755150632251,14.5,4725.9,4725.7,2.11604847]
[1755150632445,14.5,4725.9,4725.7,2.56814847]
[1755150632743,0.1056,4725.8,4725.7,2.11604847]
[1755150633324,0.1056,4725.8,4725.4,3.517]
[1755150633528,0.4832,4725.8,4725.4,3.517]
[1755150633848,0.1056,4725.5,4725.4,5.63322296]
[1755150634012,1.0522,4725.5,4725.4,3.513]
[1755150634216,1.0522,4725.5,4724.6,2.11655528]
[1755150634448,0.9466,4725.4,4724.3,0.001]
[1755150634664,0.1056,4724.4,4724.3,0.001]
[1755150634955,14.6056,4724.4,4724.3,0.001]
[1755150635664,14.6056,4724.4,4724.1,0.02]
[1755150635665,15.5522,4724.4,4724.1,0.02]
[1755150635819,0.9466,4724.3,4724.1,0.02]
[1755150636150,0.9466,4724.2,4724.1,0.02]
[1755150636345,18.531206,4724.2,4724.1,0.02]
[1755150636549,3.0,4724.1,4723.1,0.02]
[1755150636750,0.9466,4724.0,4723.1,0.02]
[1755150637045,0.084606,4724.2,4723.1,0.02]